bitfinex-derivatives/quotes_ETHF0:USTF0_20251117
["timestamp","ask_amount","ask_price","bid_price","bid_amount"]
[1763418181421,12.49857561,3021.8,3021.7,23.3338]
[1763418181623,12.49857561,3021.8,3021.7,25.66527989]
[1763418181822,12.50848675,3021.8,3021.7,22.35647989]
[1763418182025,2.27288553,3021.8,3021.7,25.66527989]
[1763418182326,2.27288553,3021.8,3021.7,2.33147989]
[1763418182327,10.960431,3021.8,3021.7,2.33147989]
[1763418182523,10.960431,3021.8,3021.2,9.32190787]
[1763418182524,0.8424,3021.5,3021.2,9.32190787]
[1763418182827,1.4278,3021.3,3021.2,7.5772746]
[1763418183027,1.4278,3021.3,3021.2,5.053]
[1763418183235,0.00991114,3021.3,3021.0,0.27118334]
[1763418183525,0.8424,3021.0,3020.5,40.8]
[1763418183721,2.27288553,3021.2,3020.8,0.00496384]
[1763418183923,0.8424,3022.0,3020.8,0.00496384]
[1763418184125,0.8424,3023.4,3021.0,6.23420232]
[1763418184419,1.37882,3023.4,3021.2,3.319]
[1763418184625,0.8424,3023.4,3021.3,23.346]
[1763418184824,0.8424,3023.4,3021.4,20.027]
[1763418185130,0.8424,3023.4,3021.4,22.94220232]
[1763418185620,0.53644,3023.3,3021.4,2.91520232]
[1763418185821,0.8424,3023.4,3021.5,3.247]
[1763418186222,0.8424,3023.4,3021.5,6.16220232]
[1763418186824,0.8424,3023.4,3021.5,2.91520232]
[1763418187024,0.8424,3023.4,3021.7,2.91520232]
[1763418187423,0.8424,3023.4,3021.6,8.109]
[1763418187424,0.8424,3023.4,3021.9,2.91520232]
[1763418187928,0.8424,3023.4,3022.0,3.3088]
[1763418188121,0.8424,3023.4,3022.1,8.109]
[1763418188429,0.8424,3023.4,3022.2,40.8]
[1763418188634,0.8424,3023.4,3022.2,44.1088]
[1763418189222,0.8424,3023.4,3022.2,40.8]
[1763418189716,0.8424,3023.4,3022.3,8.109]
[1763418190125,1.4278,3022.4,3022.3,0.00496384]
[1763418190428,0.85075045,3023.0,3022.3,8.11396384]
[1763418192333,0.85075045,3023.0,3022.3,11.02916616]
[1763418192532,0.85075045,3023.0,3022.7,2.33568363]
[1763418192725,0.00835045,3023.0,3022.8,8.109]
[1763418193035,0.8424,3023.4,3022.9,2.91520232]
[1763418193235,1.4278,3023.3,3023.2,2.33437363]
[1763418193534,2.2702,3022.8,3022.7,0.0042908]
[1763418193727,2.2702,3022.8,3022.7,8.1132908]
[1763418194028,2.27406502,3022.8,3022.7,8.1132908]
[1763418195132,0.84626502,3022.8,3022.7,8.1132908]
[1763418195437,0.00386502,3022.8,3022.7,8.1132908]
[1763418195627,0.84626502,3022.8,3022.7,8.1122908]
[1763418195823,0.84626502,3022.8,3022.7,10.44666443]
[1763418196222,0.84626502,3022.8,3022.7,2.33866443]
[1763418196432,2.27406502,3022.8,3022.7,0.0042908]
[1763418196733,2.27406502,3022.8,3022.7,8.1122908]
[1763418198835,0.84626502,3022.8,3022.7,8.1122908]
[1763418199734,0.00496384,3023.1,3022.7,9.3122908]
[1763418199938,2.7705,3022.8,3022.7,0.0042908]
[1763418200234,1.0638,3022.8,3022.7,8.1122908]
[1763418200434,2.7705,3022.8,3022.7,0.0042908]
[1763418200627,2.77373275,3022.8,3022.7,8.1122908]
[1763418202734,2.77373275,3022.8,3022.7,9.86342668]
[1763418202735,1.06703275,3022.8,3022.7,9.86342668]
[1763418203642,1.06703275,3022.8,3022.7,8.1122908]
[1763418203836,1.06703275,3022.8,3022.7,1.75553693]
[1763418203837,2.77373275,3022.8,3022.7,1.75553693]
[1763418204135,2.77373275,3022.8,3022.7,8.1122908]
[1763418204333,2.77373275,3022.8,3022.7,0.0042908]
[1763418204636,2.77373275,3022.8,3022.7,8.1122908]
[1763418207432,2.77373275,3022.8,3022.7,0.0042908]
[1763418207631,2.77373275,3022.8,3022.7,8.1122908]
[1763418208638,2.77373275,3022.8,3022.7,0.0042908]
[1763418208941,2.77373275,3022.8,3022.7,8.1122908]
[1763418209934,2.77373275,3022.8,3022.7,0.0042908]
[1763418210134,2.77373275,3022.8,3022.7,8.1122908]
[1763418211445,2.77373275,3022.8,3022.7,0.0042908]
[1763418211643,2.77373275,3022.8,3022.7,8.1122908]
[1763418213442,2.77373275,3022.8,3022.7,9.86353693]
[1763418214745,1.06703275,3022.8,3022.7,8.1122908]
[1763418215944,0.00323275,3022.8,3022.7,8.1122908]
[1763418216148,0.00496384,3023.1,3022.7,8.1122908]
[1763418216340,0.00496384,3023.1,3023.0,2.3350517]
[1763418216538,0.00496384,3023.1,3022.7,11.02749312]
[1763418216738,0.00496384,3023.1,3022.8,2.91520232]
[1763418216937,1.16193074,3024.8,3022.9,6.23420232]
[1763418217139,1.0142611,3024.5,3024.2,1.75027562]
[1763418217439,1.0142611,3024.5,3024.2,2.33370083]
[1763418217644,1.6513,3024.4,3024.3,6.698]
[1763418218144,1.0142611,3024.5,3024.3,8.70826184]
[1763418219041,1.0142611,3024.5,3024.4,1.74599083]
[1763418219253,1.0142611,3024.5,3024.4,2.32112091]
[1763418219745,1.0142611,3024.5,3024.4,10.42712091]
[1763418219941,1.0142611,3024.5,3024.4,8.106]
[1763418220347,1.0142611,3024.5,3024.4,9.84608626]
[1763418220749,1.0142611,3024.5,3024.4,1.74008626]
[1763418220941,1.6513,3024.4,3024.3,0.26427101]
[1763418221141,1.6513,3024.4,3024.3,8.106]
[1763418221444,1.6513,3024.4,3024.3,8.36853796]
[1763418223346,1.6513,3024.4,3024.3,8.36753796]
[1763418225450,1.0142611,3024.5,3024.3,8.36653796]
[1763418225748,1.0142611,3024.5,3024.0,1.7450501]
[1763418225950,1.0142611,3024.5,3024.1,9.84408626]
[1763418226351,1.0142611,3024.5,3024.1,8.104]
[1763418226544,1.0142611,3024.5,3024.2,8.104]
[1763418226745,0.0030611,3024.5,3024.2,9.84408626]
[1763418227251,0.00496384,3024.7,3024.4,1.73397788]
[1763418227561,1.0112,3025.5,3024.5,5.62672091]
[1763418227738,1.0112,3025.5,3025.0,1.73309515]
[1763418227943,1.0112,3025.5,3025.1,8.104]
[1763418228354,1.01493908,3025.5,3025.1,8.10756815]
[1763418229244,0.0049501,3025.6,3025.1,9.8406633]
[1763418229444,0.0049501,3025.6,3025.2,1.73309515]
[1763418229643,1.0112,3026.5,3025.3,1.73309515]
[1763418229844,1.0112,3026.5,3025.8,1.73309515]
[1763418230043,1.0112,3026.5,3025.7,1.73309515]
[1763418230349,1.01534682,3026.5,3025.8,3.825]
[1763418230745,1.01534682,3026.5,3025.8,3.82996384]
[1763418231246,1.01534682,3026.5,3025.8,0.00496384]
[1763418231449,1.01534682,3026.5,3025.9,1.845]
[1763418232044,1.0112,3026.0,3025.8,0.00496384]
[1763418232249,2.6625,3026.0,3025.9,4.424]
[1763418232750,2.6625,3026.0,3025.9,8.102]
[1763418234055,1.6513,3025.9,3025.8,0.00496384]
[1763418234260,1.0112,3025.5,3025.1,0.00356815]
[1763418234456,1.0112,3025.5,3025.2,6.197]
[1763418235456,1.0112,3026.0,3025.2,6.197]
[1763418235457,0.00496383,3025.7,3025.2,6.197]
[1763418237657,0.00496383,3025.7,3025.1,0.00356815]
[1763418238051,0.00286383,3025.7,3025.2,24.29311517]
[1763418238249,0.00286383,3025.7,3025.2,20.007]
[1763418238561,0.00286383,3025.7,3025.1,0.00356815]
[1763418238759,0.00286383,3025.7,3025.2,8.1]
[1763418240559,0.00286383,3025.7,3025.3,8.103]
[1763418240859,0.858,3025.5,3025.4,8.102]
[1763418241065,0.858,3025.5,3025.4,8.101]
[1763418241252,0.00286383,3025.7,3025.4,8.101]
[1763418241855,0.00286383,3025.7,3025.4,11.4058]
[1763418242049,0.00286383,3025.7,3025.4,11.42]
[1763418242247,0.00286383,3025.7,3025.5,1.73309515]
[1763418242445,0.00286383,3025.7,3025.6,1.73309515]
[1763418242656,0.00286383,3025.7,3025.6,48.48655219]
[1763418242862,0.00286383,3025.7,3025.6,64.1128]
[1763418243166,0.00286383,3025.7,3025.6,67.4318]
[1763418243459,0.00286383,3025.7,3025.6,65.84689515]
[1763418243857,0.00286383,3025.7,3025.6,69.16589515]
[1763418244257,0.00286383,3025.7,3025.6,64.1138]
[1763418244558,0.00286383,3025.7,3025.6,50.63646353]
[1763418244760,0.00286383,3025.7,3025.5,1.73446353]
[1763418244958,0.00286383,3025.7,3025.2,14.22612091]
[1763418244959,0.858,3025.5,3025.2,13.63946353]
[1763418245169,0.858,3025.5,3025.3,8.102]
[1763418245464,0.858,3025.5,3025.3,9.83646353]
[1763418245757,0.858,3025.5,3025.4,8.102]
[1763418246160,0.858,3025.5,3025.4,9.83646353]
[1763418246455,0.858,3025.5,3025.4,8.102]
[1763418247057,0.00286383,3025.7,3025.4,8.102]
[1763418247267,1.4686,3025.6,3025.5,1.7401023]
[1763418247466,1.4686,3025.2,3025.1,0.00356815]
[1763418247651,1.4686,3025.2,3025.1,8.10356815]
[1763418248649,1.4686,3025.2,3025.1,0.00356815]
[1763418248853,1.4686,3025.2,3024.4,2.32112091]
[1763418248854,2.3266,3024.5,3024.4,1.7401023]
[1763418249050,2.3266,3024.5,3024.4,3.331]
[1763418249363,1.4686,3024.3,3024.1,0.26413284]
[1763418249565,1.4686,3024.3,3024.2,8.099]
[1763418249753,0.858,3024.0,3023.9,1.74506614]
[1763418249951,2.3266,3024.0,3023.9,8.1087376]
[1763418250156,2.3266,3024.0,3023.9,8.37325828]
[1763418250356,2.3266,3024.0,3023.9,0.27325828]
[1763418250551,2.3266,3024.0,3023.9,8.37525828]
[1763418251966,2.3266,3024.0,3023.9,0.27325828]
[1763418252356,0.858,3023.4,3023.3,1.7401023]
[1763418252557,0.858,3023.4,3023.3,8.106]
[1763418252954,0.858,3024.0,3023.3,14.106]
[1763418253163,0.00813976,3024.3,3023.7,1.7401023]
[1763418253370,0.00813976,3024.3,3024.0,1.7401023]
[1763418253766,0.00813976,3024.3,3024.1,8.11]
[1763418254172,0.00813976,3024.3,3024.1,9.8501023]
[1763418254468,0.00813976,3024.3,3024.2,1.7401023]
[1763418255362,0.858,3025.0,3024.1,8.11]
[1763418255562,0.858,3025.0,3024.3,1.74054457]
[1763418255758,1.4686,3023.9,3023.8,2.3210665]
[1763418255965,0.5694,3023.4,3022.8,0.905]
[1763418256261,0.53625,3024.3,3023.1,0.30553801]
[1763418256571,0.84569942,3024.2,3023.1,0.30553801]
[1763418256777,0.84569942,3024.1,3022.9,5.343]
[1763418257067,0.00496384,3023.8,3023.4,0.905]
[1763418257857,0.00496384,3023.8,3023.7,1.432]
[1763418258060,0.00496384,3023.8,3023.7,9.598]
[1763418259172,0.00496384,3023.8,3023.4,0.905]
[1763418259470,0.00496384,3023.8,3023.5,8.165]
[1763418259968,0.00496384,3023.8,3023.7,1.6409]
[1763418261871,0.00496384,3023.8,3023.5,8.165]
[1763418262066,0.00496384,3023.8,3023.7,1.6409]
[1763418263168,4.72771751,3025.5,3024.0,2.6266]
[1763418263375,0.83971751,3025.4,3024.0,2.6266]
[1763418263683,1.37576751,3025.4,3024.0,2.6266]
[1763418263872,0.83971751,3025.3,3024.1,5.601]
[1763418264179,0.00383398,3025.3,3025.2,2.6266]
[1763418264473,0.00383398,3025.3,3025.2,6.34411246]
[1763418264672,0.83933781,3026.6,3025.2,6.34411246]
[1763418264879,0.53574,3027.2,3025.3,3.536]
[1763418265169,0.83774932,3027.1,3025.3,3.536]
[1763418265375,0.53572,3027.3,3025.3,3.536]
[1763418265376,0.83774932,3027.0,3025.3,3.536]
[1763418265571,0.83774932,3026.9,3025.3,3.536]
[1763418265772,0.00286384,3026.4,3025.3,3.536]
[1763418267373,0.00286384,3026.4,3025.2,0.98921246]
[1763418267878,0.53596,3026.0,3025.2,0.00351246]
[1763418269080,0.00286384,3026.4,3025.2,0.00351246]
[1763418269680,0.53593,3026.1,3025.2,0.00351246]
[1763418270479,0.53595,3026.0,3025.2,0.96161246]
[1763418270679,4.42397,3025.9,3025.2,0.96161246]
[1763418270876,3.888,3025.9,3025.2,0.96161246]
[1763418274380,4.42397,3025.9,3025.2,0.96161246]
[1763418274676,0.536,3025.7,3025.2,0.96161246]
[1763418274882,0.53602,3025.7,3025.2,0.96161246]
[1763418275182,0.53601,3025.7,3025.2,0.96161246]
[1763418275867,0.53602,3025.6,3025.2,0.96161246]
[1763418276081,0.53607,3025.3,3024.9,0.00496384]
[1763418276283,0.53614,3025.0,3024.0,0.9857]
[1763418276885,0.53615,3024.9,3024.0,0.9857]
[1763418277283,0.00496384,3024.8,3024.1,0.00496384]
[1763418277785,1.16193074,3026.1,3025.8,0.9581]
[1763418277974,0.53594,3026.1,3025.2,0.9581]
[1763418278178,0.53591,3026.2,3025.2,0.9581]
[1763418278379,0.53593,3026.1,3025.2,0.9581]
[1763418278572,0.53588,3026.4,3025.2,0.9581]
[1763418278776,1.16193074,3026.7,3025.2,0.9581]
[1763418278777,0.00286384,3026.1,3025.5,0.00496384]
[1763418278981,0.00286384,3026.1,3025.8,0.9581]
[1763418280981,0.00286384,3026.1,3026.0,1.5586]
[1763418282591,0.53603,3025.5,3025.4,1.59096384]
[1763418282772,0.00286384,3026.1,3024.0,0.98938743]
[1763418282976,1.16193074,3025.3,3024.0,0.98938743]
[1763418283172,0.85792423,3025.2,3024.0,0.98938743]
[1763418283382,0.85792423,3025.1,3024.0,0.98938743]
[1763418283588,0.85792423,3025.0,3024.2,0.00496384]
[1763418283776,0.53618,3024.7,3024.2,0.00496384]
[1763418283976,1.39412423,3024.6,3024.2,0.00496384]
[1763418284176,0.00317486,3024.7,3024.2,0.00496384]
[1763418284380,0.00317486,3024.7,3024.6,0.9581]
[1763418287581,0.00317486,3024.7,3024.2,0.00496384]
[1763418287782,0.53935486,3024.7,3024.2,0.00496384]
[1763418287982,0.00317486,3024.7,3024.2,0.00496384]
[1763418289289,0.86008138,3024.7,3024.2,0.00496384]
[1763418289793,0.00317486,3024.7,3024.2,0.00496384]
[1763418290188,0.86009049,3024.7,3024.2,0.00496384]
[1763418290392,0.00317486,3024.7,3024.2,0.00496384]
[1763418290689,0.86010911,3024.7,3024.2,0.00496384]
[1763418290898,0.00317486,3024.7,3024.6,0.9581]
[1763418296301,0.86011369,3024.7,3024.6,0.9581]
[1763418296904,1.39629369,3024.7,3024.6,0.9581]
[1763418297405,0.86011369,3024.7,3024.2,0.00496384]
[1763418297605,0.85693883,3024.6,3024.0,0.98938743]
[1763418297911,0.53627,3024.2,3024.0,0.98938743]
[1763418298106,0.00317486,3024.7,3024.5,0.8608]
[1763418298401,0.53935486,3024.7,3024.5,0.8608]
[1763418298599,0.00317486,3024.7,3024.5,0.8608]
[1763418298998,0.53619,3024.6,3024.5,0.8608]
[1763418299199,0.53935486,3024.7,3024.5,0.8608]
[1763418299705,0.00317486,3024.7,3024.5,0.8608]
[1763418300205,0.53935486,3024.7,3024.5,0.8608]
[1763418300402,0.53619,3024.6,3024.5,0.41986701]
[1763418300599,0.53628,3024.1,3024.0,0.00368743]
[1763418300898,0.53642,3023.4,3022.5,0.8608]
[1763418301202,0.53642,3023.4,3022.6,0.30711962]
[1763418301404,0.53646,3023.2,3022.6,0.30711962]
[1763418301702,0.53646,3023.2,3023.0,0.9606004]
[1763418302006,0.53644,3023.2,3023.0,0.9606004]
[1763418302308,0.53644,3023.3,3023.0,0.9606004]
[1763418302508,0.53645,3023.2,3023.0,0.9606004]
[1763418302695,1.18478568,3023.9,3023.0,0.9606004]
[1763418303101,0.85649902,3023.8,3023.0,0.9606004]
[1763418303302,0.85649902,3023.7,3023.0,0.9606004]
[1763418303506,0.5364,3023.5,3023.0,0.9606004]
[1763418304407,1.18478568,3024.2,3023.0,0.9606004]
[1763418304604,2.04054785,3024.1,3023.0,0.9606004]
[1763418304808,0.53643,3023.3,3023.0,0.9606004]
[1763418305006,1.73357442,3023.8,3022.1,2.93943392]
[1763418305312,4.15234815,3025.2,3020.5,0.8608]
[1763418305313,1.18227848,3022.9,3020.5,0.8608]
[1763418305606,0.7692,3023.0,3022.1,1.4935]
[1763418305812,0.7692,3023.0,3021.7,2.783]
[1763418306308,0.77308626,3023.0,3021.7,0.00310697]
[1763418306508,0.00496384,3022.7,3022.0,0.00496384]
[1763418306706,0.00496384,3022.7,3022.6,1.4935]
[1763418307301,0.53634,3023.8,3022.9,1.4935]
[1763418307606,12.6832,3025.2,3023.0,13.08338712]
[1763418307607,0.7692,3025.2,3023.0,13.08338712]
[1763418307808,0.536,3025.8,3024.1,1.16738712]
[1763418308009,0.7692,3026.4,3024.0,2.02818712]
[1763418308010,0.536,3025.7,3024.0,2.02818712]
[1763418308212,0.7692,3026.4,3024.1,3.29538712]
[1763418308405,0.00496384,3025.6,3024.9,0.00496384]
[1763418308814,0.53605,3025.4,3024.9,0.00496384]
[1763418309115,0.00496384,3025.6,3024.9,0.00496384]
[1763418309407,0.00496384,3025.6,3025.4,0.8608]
[1763418309912,0.00244972,3026.4,3025.5,6.0]
[1763418310111,0.00244972,3026.4,3025.5,8.23]
[1763418310717,0.00244972,3026.4,3026.1,0.8608]
[1763418310917,0.00496384,3026.3,3026.1,0.8608]
[1763418311611,0.00244972,3026.4,3026.1,0.8608]
[1763418311612,0.7692,3027.6,3026.1,0.8608]
[1763418311804,0.53569,3027.5,3026.1,0.8608]
[1763418312005,0.7692,3027.6,3025.4,0.8608]
[1763418312411,0.53581,3026.8,3025.4,0.8608]
[1763418312613,0.53581,3026.8,3025.2,0.87167982]
[1763418312614,0.53596,3026.0,3025.8,0.00496384]
[1763418312817,0.7692,3026.1,3024.7,0.8608]
[1763418313012,0.00286384,3026.4,3024.7,0.8608]
[1763418313220,0.00286384,3026.4,3024.8,0.87167982]
[1763418313518,0.00286384,3026.4,3025.1,0.87167982]
[1763418313709,0.00286384,3026.4,3025.4,0.00496384]
[1763418314219,0.53594,3026.1,3025.4,0.00496384]
[1763418314412,0.7692,3025.6,3024.1,0.87404331]
[1763418314608,0.7692,3025.6,3024.1,0.00236349]
[1763418314807,0.53618,3024.7,3024.1,0.00236349]
[1763418315113,0.53609,3025.2,3024.1,0.00236349]
[1763418315313,0.53608,3025.3,3024.1,0.00236349]
[1763418315508,0.00496384,3025.0,3024.4,0.00496384]
[1763418316818,0.53618,3024.7,3024.4,0.00496384]
[1763418317017,0.7668,3024.8,3022.6,1.73247982]
[1763418317018,0.53637,3023.7,3022.6,1.73247982]
[1763418317219,0.7668,3024.8,3022.4,0.8608]
[1763418317413,0.53638,3023.6,3022.4,0.8608]
[1763418317612,0.7668,3024.8,3022.4,0.8608]
[1763418317915,0.53641,3023.4,3022.4,0.8608]
[1763418318214,0.53641,3023.4,3022.6,0.00496384]
[1763418318215,0.00496384,3023.2,3022.6,0.00496384]
[1763418319715,0.54140384,3023.2,3022.6,0.00496384]
[1763418319912,0.00496384,3023.2,3022.6,0.00496384]
[1763418320216,0.54142384,3023.2,3022.6,0.00496384]
[1763418321224,0.00496384,3023.2,3022.6,0.00496384]
[1763418324229,0.00407026,3023.4,3023.3,0.9413]
[1763418326223,0.00407026,3023.4,3022.6,0.00496384]
[1763418326224,0.54048026,3023.4,3022.6,0.00496384]
[1763418326430,0.00407026,3023.4,3022.6,0.00496384]
[1763418326628,0.53651,3022.9,3022.6,0.00496384]
[1763418327120,0.7109,3023.3,3022.6,0.00496384]
[1763418327327,0.00407026,3023.4,3022.6,0.00496384]
[1763418327715,0.53645,3023.2,3022.6,0.00496384]
[1763418327920,0.00407026,3023.4,3022.6,0.00496384]
[1763418327921,0.53642,3023.3,3022.6,0.00496384]
[1763418328316,0.53647,3023.1,3022.6,0.00496384]
[1763418328521,0.00407026,3023.4,3022.6,0.00496384]
[1763418328722,0.53643,3023.3,3022.6,0.00496384]
[1763418329630,0.00407026,3023.4,3022.6,0.00496384]
[1763418329827,0.53652,3022.8,3022.6,0.00496384]
[1763418330231,9.888,3022.7,3021.5,2.548]
[1763418330427,9.888,3022.7,3020.6,43.13477424]
[1763418330428,0.53671,3021.8,3020.5,0.9413]
[1763418330627,0.4683,3022.6,3020.6,0.87167982]
[1763418330933,0.4683,3022.6,3020.7,0.87167982]
[1763418331127,0.9366,3021.9,3020.5,0.9413]
[1763418331334,0.9366,3021.9,3020.5,0.94550759]
[1763418331531,0.5368,3021.2,3020.5,0.94550759]
[1763418331830,0.5368,3021.2,3020.5,0.00917143]
[1763418331831,0.53689,3020.7,3020.5,0.00917143]
[1763418332033,6.0,3021.1,3018.7,0.90480721]
[1763418332331,0.61180993,3021.2,3018.7,0.03312739]
[1763418332522,0.61180993,3021.2,3018.7,0.90480721]
[1763418332725,0.61180993,3021.2,3018.7,0.03312739]
[1763418332922,0.61180993,3021.2,3019.1,0.98232013]
[1763418333231,0.61180993,3021.2,3019.8,0.00496384]
[1763418333430,0.61180993,3021.2,3019.8,0.98456384]
[1763418333637,0.53687,3020.8,3019.8,0.98456384]
[1763418333831,0.53689,3020.7,3019.8,0.98456384]
[1763418334532,0.61180993,3021.2,3019.8,0.98456384]
[1763418334734,0.53695,3020.4,3019.8,0.98456384]
[1763418335036,0.53686,3020.9,3019.8,0.98456384]
[1763418335333,0.61180993,3021.2,3019.8,0.98456384]
[1763418335334,0.00840993,3021.2,3019.8,0.98456384]
[1763418335735,0.00840993,3021.2,3020.5,0.9796]
[1763418335933,0.00840993,3021.2,3020.5,3.9356]
[1763418336235,0.53657,3022.5,3020.6,3.3096]
[1763418336441,0.53659,3022.4,3020.5,3.9356]
[1763418336734,0.5621,3023.3,3020.6,40.8]
[1763418336934,0.53654,3022.7,3020.6,40.8]
[1763418337135,0.53958217,3022.7,3020.6,40.8]
[1763418337432,0.00496384,3022.0,3021.3,0.00496384]
[1763418337636,0.00496384,3022.0,3021.9,0.9796]
[1763418337832,0.00496384,3022.0,3021.3,0.00771654]
[1763418338930,0.53672,3021.7,3021.3,0.00771654]
[1763418339131,0.53669,3021.9,3021.3,0.00771654]
[1763418339335,0.53672,3021.7,3021.3,0.00771654]
[1763418339639,0.53671,3021.7,3021.3,0.00771654]
[1763418339834,0.9366,3021.9,3021.3,0.00771654]
[1763418340034,0.53675,3021.5,3021.3,0.00771654]
[1763418340341,6.0,3021.8,3019.8,0.9796]
[1763418340534,0.9366,3021.9,3019.8,0.9796]
[1763418341138,0.9366,3021.9,3020.5,0.98456384]
[1763418341339,0.53683,3021.0,3020.5,0.00496384]
[1763418341732,0.9366,3021.9,3020.5,0.00496384]
[1763418342338,0.53682,3021.1,3020.5,0.00496384]
[1763418342734,0.9366,3021.9,3020.5,0.98456384]
[1763418342943,0.00496384,3022.0,3020.5,0.98456384]
[1763418344336,0.00496384,3022.0,3020.7,0.87167982]
[1763418344644,0.00496384,3022.0,3020.8,8.246]
[1763418345437,0.00496384,3022.0,3020.9,8.245]
[1763418345944,0.00496384,3022.0,3021.0,8.244]
[1763418346245,0.00304217,3022.7,3021.9,0.9796]
[1763418347345,0.00496384,3022.6,3021.9,0.9796]
[1763418347943,0.00496384,3022.6,3022.0,7.123]
[1763418348248,0.00496384,3022.6,3022.0,0.00323348]
[1763418349955,0.00496384,3022.6,3022.0,8.24523348]
[1763418350156,0.00496384,3022.6,3022.0,0.00323348]
[1763418350552,0.93876384,3022.6,3022.0,0.00323348]
[1763418350756,0.53662,3022.2,3022.0,0.00323348]
[1763418350954,0.53659,3022.4,3022.0,0.00323348]
[1763418351261,0.53664,3022.1,3022.0,0.00323348]
[1763418351455,0.53662,3022.2,3022.0,0.00323348]
[1763418351654,0.53664,3022.1,3022.0,0.00323348]
[1763418352455,0.93876384,3022.6,3022.0,0.00323348]
[1763418352653,0.00496384,3022.6,3022.0,0.00323348]
[1763418352853,0.54152384,3022.6,3022.0,0.00323348]
[1763418353353,0.00496384,3022.6,3022.0,0.00323348]
[1763418354762,0.00496384,3022.6,3022.0,0.87803024]
[1763418354964,0.00496384,3022.6,3022.0,0.00323348]
[1763418355361,0.00496384,3022.6,3022.0,0.87803024]
[1763418355567,0.00496384,3022.6,3022.1,0.87479676]
[1763418355861,0.00496384,3022.6,3022.1,9.10979676]
[1763418356067,0.00496384,3022.6,3022.1,0.87479676]
[1763418356359,0.00496384,3022.6,3022.2,6.151]
[1763418356662,0.00496384,3022.6,3022.5,1.5376]
[1763418358768,0.00304217,3022.7,3022.6,1.4074]
[1763418361266,0.5363,3024.0,3022.9,1.4074]
[1763418361466,0.53625,3024.3,3022.9,1.4074]
[1763418361770,0.53625,3024.3,3022.9,2.2833052]
[1763418362070,0.00301719,3024.3,3022.9,2.62503814]
[1763418362362,0.00496384,3023.9,3023.0,5.8189052]
[1763418363961,0.00496384,3023.9,3022.9,0.8759052]
[1763418364264,0.00496384,3023.9,3023.0,8.225]
[1763418364970,0.54129384,3023.9,3023.0,8.225]
[1763418365166,0.00496384,3023.9,3023.0,8.225]
[1763418365367,0.53635,3023.8,3023.0,9.1009052]
[1763418365570,0.00496384,3023.9,3022.9,0.8759052]
[1763418365865,0.00496384,3023.9,3022.3,0.8759052]
[1763418366068,0.53643,3023.3,3022.3,0.8759052]
[1763418366374,0.00496384,3023.9,3022.4,8.225]
[1763418366375,0.53644,3023.2,3022.4,8.225]
[1763418366670,0.53646,3023.2,3022.3,8.225]
[1763418367064,0.00496384,3023.9,3022.3,9.1009052]
[1763418367265,0.53643,3023.3,3022.3,9.1009052]
[1763418367572,0.00496384,3023.9,3022.3,9.1009052]
[1763418367770,0.53648,3023.0,3022.3,8.224]
[1763418367972,0.53646,3023.1,3022.3,8.224]
[1763418368271,0.4669,3023.4,3022.3,0.8759052]
[1763418368461,0.4669,3023.4,3022.2,1.7182052]
[1763418368661,0.53657,3022.5,3022.1,0.8759052]
[1763418368857,0.53658,3022.5,3022.0,0.00819732]
[1763418369057,0.53659,3022.4,3022.0,0.00819732]
[1763418369661,1.4368,3022.1,3022.0,0.00819732]
[1763418369863,0.00245314,3022.1,3022.0,0.00819732]
[1763418370065,1.97589314,3022.1,3022.0,0.00819732]
[1763418370665,1.43925314,3022.1,3022.0,0.00819732]
[1763418371566,0.53667,3022.0,3021.3,0.8759052]
[1763418371761,0.00245314,3022.1,3021.1,0.8759052]
[1763418371762,0.53909314,3022.1,3021.1,0.8759052]
[1763418371965,0.00245314,3022.1,3021.1,0.8759052]
[1763418372164,0.5367,3021.8,3021.1,0.8759052]
[1763418372365,0.53667,3022.0,3021.2,0.8759052]
[1763418372661,0.53666,3022.0,3021.3,0.00496384]
[1763418372970,0.00245314,3022.1,3021.3,0.00496384]
[1763418373163,0.53909314,3022.1,3021.3,0.00496384]
[1763418373671,0.53666,3022.0,3021.3,0.00496384]
[1763418373872,0.00245314,3022.1,3021.3,0.00496384]
[1763418374067,0.00245314,3022.1,3021.3,0.88086904]
[1763418374271,0.53667,3021.9,3021.3,0.88086904]
[1763418374865,0.53668,3021.9,3021.3,0.88086904]
[1763418375065,0.53669,3021.8,3021.3,0.88086904]
[1763418375368,0.00245314,3022.1,3021.3,0.00496384]
[1763418375560,0.53671,3021.8,3021.3,0.00496384]
[1763418375964,0.53910314,3022.1,3021.3,0.00496384]
[1763418376166,0.53668,3021.9,3021.3,0.88086904]
[1763418377372,0.53668,3021.9,3021.3,0.00496384]
[1763418377775,0.00245314,3022.1,3021.3,0.00496384]
[1763418378071,0.00245314,3022.1,3022.0,1.2715]
[1763418378272,0.00496384,3022.4,3022.3,1.2715]
[1763418379575,0.00795453,3022.4,3022.3,1.2715]
[1763418381775,0.00795453,3022.4,3022.0,0.8759052]
[1763418382163,1.2765,3022.1,3021.9,0.8759052]
[1763418382372,0.53662,3022.3,3021.8,0.8759052]
[1763418382771,0.53662,3022.2,3021.8,0.8759052]
[1763418383076,0.5366,3022.3,3021.7,0.8759052]
[1763418384277,0.53664,3022.1,3021.7,0.8759052]
[1763418385171,0.53665,3022.1,3021.7,0.8759052]
[1763418385374,0.53667,3022.0,3021.6,1.6514052]
[1763418385571,1.2765,3021.7,3021.5,0.8759052]
[1763418385773,1.2765,3021.6,3021.4,0.8759052]
[1763418385981,0.53669,3021.8,3021.3,0.88086904]
[1763418386975,1.81326,3021.4,3021.3,0.00496384]
[1763418388979,0.00795453,3022.4,3021.3,1.28786384]
[1763418388980,0.53666,3022.0,3021.3,1.28786384]
[1763418389173,1.3124,3021.4,3021.3,0.00496384]
[1763418389377,1.84916,3021.4,3021.3,0.00496384]
[1763418389876,1.84918,3021.3,3021.2,0.00364896]
[1763418391389,0.4583,3021.0,3020.2,0.8759052]
[1763418391687,0.53689,3020.7,3020.2,0.8759052]
[1763418392184,0.53687,3020.9,3020.2,0.8759052]
[1763418392484,0.53688,3020.8,3020.2,0.88347356]
[1763418392889,0.00496384,3020.9,3020.4,0.8057]
[1763418393085,0.54182384,3020.9,3020.4,0.8057]
[1763418393786,0.00496384,3020.9,3020.4,0.8057]
[1763418394389,0.00496384,3020.9,3020.4,1.6816052]
[1763418396887,0.53687,3020.8,3020.4,1.6816052]